[Event "IX Torneio Internacional"]
[Site "Vila Nova de Famalicão"]
[Date "2022.07.25"]
[Round "1.1"]
[White "MARTINEZ DUANY, Lelys Stanley"]
[Black "FERNANDES, Rodrigo"]
[Result "1-0"]
[ECO "B24"]
[WhiteElo "2497"]
[BlackElo "1383"]
[Annotator "TA"]
[PlyCount "43"]
[EventDate "2022.07.25"]
[EventType "tourn"]
[EventCountry "POR"]
[SourceTitle "playchess.com"]
[Source "ChessBase"]
[SourceQuality "1"]
[TimeControl "5400+30"]

{[%evp 9,43,15,54,23,22,36,107,102,130,89,143,131,137,135,143,118,233,245,240,156,185,187,298,301,278,290,285,289,399,389,443,427,447,443,1580,1583]} 1. e4 c5 2. Nc3 Nc6 3. Bb5 e6 4. Bxc6 bxc6 5. d3 g6 {[#]} 6. h4 $146 {[%cal Bh2h4,Bh4h5][%mdl 32] B23: Closed Sicilian: Lines without g3.} ({Predecessor:} 6. f4 Ne7 7. Nf3 Bg7 8. O-O Rb8 9. Qe1 O-O 10. b3 d6 11. Rb1 f5 12. Bd2 Qc7 13. e5 d5 14. Na4 c4 15. Ba5 Qd7 16. Nc5 Qe8 17. bxc4 Rxb1 18. Qxb1 {1-0 (18) Hros,R (2199)-Ihnat,M (2065) Topolcany 2020}) 6... Bg7 7. h5 Bxc3+ {White now steadily converts the win.} (7... d6 $14) 8. bxc3 $16 {White is better.} g5 9. e5 h6 (9... Qa5 $142) 10. Nf3 {[%cal Bg1f3,Bf3d2,Bd2c4,Bc4d6][%mdl 32]} Ne7 11. Nd2 Qc7 12. Nc4 Ba6 (12... O-O $16 {is a better defense.}) 13. Nd6+ $18 Kf8 14. O-O ({Don't do} 14. Qf3 $6 f5 $16) 14... Nf5 15. Be3 {[%cal Bc1e3,Be3c5,Bc5d6,Bd6e5][%mdl 32]} Nxd6 (15... c4 {was called for.} 16. Bc5 (16. dxc4 Nxd6 17. Bc5 Kg8 $16) (16. Nxc4 Bxc4 17. dxc4 Qxe5 $14) 16... Kg8) 16. Bxc5 {[%mdl 64] [#] Pin} Qa5 17. Bxd6+ Kg8 18. c4 f5 19. exf6 Qf5 20. Re1 {White is clearly winning.} Rh7 21. Be5 {[#] Threatens to win with g4.} c5 (21... Rf7 $142 22. g4 Qh7) 22. g4 {Weighted Error Value: White=0.13 (very precise) /Black=0.37} 1-0

[Event "IX Torneio Internacional"]
[Site "Vila Nova de Famalicão"]
[Date "2022.07.25"]
[Round "1.3"]
[White "MITTAL, Aditya"]
[Black "RODRIGUES, Ricardo"]
[Result "1-0"]
[ECO "D07"]
[WhiteElo "2480"]
[BlackElo "1360"]
[Annotator "TA"]
[PlyCount "45"]
[EventDate "2022.07.25"]
[EventType "tourn"]
[EventCountry "POR"]
[SourceTitle "playchess.com"]
[Source "ChessBase"]
[SourceQuality "1"]
[TimeControl "5400+30"]

{[%evp 11,45,101,125,83,123,87,97,97,200,116,117,120,252,245,364,369,365,368,359,370,404,403,379,412,400,358,355,355,351,343,1350,1324,1306,1297,2678,2665]} 1. d4 {[%emt 0:00:02]} d5 {[%emt 0:00:01]} 2. c4 {[%emt 0:00:08]} Nc6 {[%emt 0:00:02]} 3. Nc3 {[%emt 0:00:22]} dxc4 {[%emt 0:00:04]} 4. Nf3 {[%emt 0:00:09]} e6 {[%emt 0:01:41]} 5. e4 {[%emt 0:00:52]} Nf6 {[%emt 0:02:04]} 6. Bxc4 {[%emt 0:00:16]} Bb4 {[%emt 0:02:08]} 7. Qd3 {[%emt 0:00:12] D20: Queen's Gambit Accepted: 3 e3 and 3 e4.} O-O {[%emt 0:03:59]} 8. a3 {[%emt 0:00:09]} Bxc3+ {[%emt 0:00:25]} 9. bxc3 {[%emt 0:00:02] [#] White is better.} Bd7 $146 {[%emt 0:04:03]} (9... e5 $16 {was necessary.}) ({Predecessor:} 9... a6 10. e5 Nd7 11. Ng5 g6 12. Qh3 h5 13. g4 f6 14. Nxe6 {1-0 (14) Jordaan,W (1664)-Weiss,F (1584) LSS email 2008}) 10. Bg5 {[%emt 0:00:29]} (10. e5 $18) 10... h6 $16 {[%emt 0:01:43]} 11. Bh4 {[%emt 0:00:28] Hoping for e5. White is more active.} g5 {[%emt 0:01:59] [#] A mistake that costs the game.} (11... Ne7 $16) 12. Nxg5 $1 $18 {[%emt 0:01:33]} ({Weaker is} 12. Bg3 Nh5 $16) 12... Nxe4 {[%emt 0:00:45]} (12... hxg5 $2 13. Bxg5 e5 14. f4) (12... Ne7 $142 13. Nf3 Ng6) 13. Nf3 {[%emt 0:02:00]} ({Less strong is} 13. Qxe4 hxg5 14. Qg4 Qf6 15. Bxg5 Qg6 $18) (13. Nxe4 Qxh4 14. Qf3 Rad8 $16) 13... Ng5 {[%emt 0:02:10]} 14. Bxg5 {[%emt 0:04:20]} hxg5 {[%emt 0:01:11]} 15. h4 {[%emt 0:00:04]} g4 {[%emt 0:01:25]} 16. Ng5 {[%emt 0:00:25][%csl Gg5][%cal Rd3h7]} f5 {[%emt 0:00:26]} 17. O-O {[%emt 0:00:49][%cal Bh1f1,Bf1e1,Be1e8,Be8d8][%mdl 32]} Qf6 {[%emt 0:02:26]} 18. Rfe1 {[%emt 0:01:14][%cal Rc4e6]} Rfe8 {[%emt 0:02:31]} 19. d5 {[%emt 0:05:05][%cal Bd4d5,Bd5e6,Be6d7][%mdl 32]} Ne5 {[%emt 0:06:01]} 20. dxe6 {[%emt 0:11:03]} Nxd3 $2 {[%emt 0:06:00]} (20... Bxe6 21. Rxe5 Qxe5 22. Nxe6 Kh8) 21. exd7+ {[%emt 0:00:13][%mdl 64] [#] Discovered Attack. White is clearly winning.} Kg7 {[%emt 0:00:57]} 22. Rxe8 {[%emt 0:00:47]} Rd8 {[%emt 0:08:35]} 23. Rxd8 {[%emt 0:00:15] Weighted Error Value: White=0.14 (very precise) /Black=0.44} 1-0

[Event "IX Torneio Internacional"]
[Site "Vila Nova de Famalicão"]
[Date "2022.07.25"]
[Round "1.5"]
[White "DAS, Sayantan"]
[Black "LOPES, Tome"]
[Result "1-0"]
[ECO "A20"]
[WhiteElo "2449"]
[BlackElo "1348"]
[Annotator "TA"]
[PlyCount "47"]
[EventDate "2022.07.25"]
[EventType "tourn"]
[EventCountry "POR"]
[SourceTitle "playchess.com"]
[Source "ChessBase"]
[SourceQuality "1"]
[TimeControl "5400+30"]

{[%evp 9,47,7,27,0,0,0,0,1,18,0,0,5,21,19,92,89,92,81,100,89,188,176,208,216,221,201,380,381,376,166,391,366,384,377,363,370,658,640,916,819]} 1. c4 {[%emt 0:00:40]} e5 {[%emt 0:00:12]} 2. g3 {[%emt 0:00:13]} Nf6 {[%emt 0:00:11]} 3. Bg2 {[%emt 0:00:07]} c6 {[%emt 0:00:16]} 4. d4 {[%emt 0:00:52]} exd4 {[%emt 0:03:37]} 5. Qxd4 {[%emt 0:00:43]} Qb6 {[%emt 0:04:15]} 6. Qe5+ {[%emt 0:05:47] A20: English Opening: 1...e5.} Be7 $1 {[%emt 0:00:15][%cal Ob6f2] aiming for ...Qxf2+!} 7. Be3 {[%emt 0:00:19]} d6 {[%emt 0:06:05]} 8. Qc3 {[%emt 0:03:19] The position is equal.} Qd8 {[%emt 0:03:16] [#]} 9. Nd2 $146 {[%emt 0:04:30]} ({Predecessor:} 9. Nf3 O-O 10. O-O Ne4 11. Qc2 Ng5 12. Nxg5 Bxg5 13. f4 Bf6 14. Bf2 Re8 15. Nc3 Bxc3 16. bxc3 {1-0 (30) Schunk,T (2300)-Eppler,K Gruenheide 1996}) 9... O-O {[%emt 0:03:54]} 10. Nh3 {[%emt 0:02:03]} d5 {[%emt 0:15:00]} 11. Nf4 {[%emt 0:00:41]} Be6 {[%emt 0:02:31]} (11... g5 $11) 12. Nxe6 $16 {[%emt 0:03:26] White is more active.} fxe6 {[%emt 0:00:14]} 13. Bh3 {[%emt 0:00:39]} Qc8 {[%emt 0:04:35]} 14. Qe5 {[%emt 0:00:24]} Kf7 {[%emt 0:03:01]} (14... Kh8 $16) 15. Nf3 $18 {[%emt 0:00:49]} Bb4+ {[%emt 0:00:44] [#]} 16. Kf1 $1 {[%emt 0:00:44]} h6 {[%emt 0:01:33]} 17. Rc1 {[%emt 0:01:58] Black must now prevent a3.} Re8 $2 {[%emt 0:09:06]} (17... Qd7 {was worth a try.} 18. Bf4 Na6) 18. cxd5 {[%emt 0:06:21]} Nxd5 {[%emt 0:02:02] [#]} 19. Bd4 {[%emt 0:00:07]} (19. a3 Bf8 20. Qh5+ Kg8 $16) (19. Bxh6 $142 $1 {[%mdl 512]} gxh6 20. Qh5+ Ke7 21. e4 (21. Ne5 Nd7 $11)) 19... Bf8 {[%emt 0:03:52]} (19... Nf6 20. Qf4 Be7) 20. Qh5+ {[%emt 0:00:30]} Kg8 {[%emt 0:04:52]} 21. Ne5 {[%emt 0:01:05] Qf7+ is the strong threat.} Re7 {[%emt 0:06:41] Inhibits Qf7+.} 22. Ng6 {[%emt 0:00:40][%cal Oh5d5] Hoping for Qxd5!} ({Less strong is} 22. Bc5 Nf6 23. Qg6 Nbd7 $18) 22... Rf7 $2 {[%emt 0:03:08] [#]} (22... Qd7 23. e4 (23. Qf3 Re8 $16) 23... Nc7 24. Nxe7+ (24. Qf3 Rf7 $18) 24... Qxe7) 23. Qxd5 $3 {[%emt 0:00:31][%mdl 512]} Qe8 {[%emt 0:01:16]} (23... exd5 24. Bxc8) 24. Qxe6 {[%emt 0:00:29] Weighted Error Value: White=0.14 (very precise) /Black=0.72} 1-0

[Event "IX Torneio Internacional"]
[Site "Vila Nova de Famalicão"]
[Date "2022.07.25"]
[Round "1.6"]
[White "MARQUES, Joao"]
[Black "Abdisalimov, Abdimalik"]
[Result "0-1"]
[ECO "A46"]
[WhiteElo "1347"]
[BlackElo "2437"]
[Annotator "TA"]
[PlyCount "100"]
[EventDate "2022.07.25"]
[EventType "tourn"]
[EventCountry "POR"]
[SourceTitle "playchess.com"]
[Source "ChessBase"]
[SourceQuality "1"]
[TimeControl "5400+30"]

{[%evp 9,100,0,0,-6,0,-25,-9,-13,0,-36,-28,-35,-34,-25,-20,-32,-20,-109,-92,-181,-142,-146,-125,-145,-133,-145,-131,-152,-135,-133,-141,-170,-174,-191,-195,-250,-193,-193,-175,-179,-170,-251,-225,-214,-195,-297,-294,-468,-436,-431,-431,-430,-428,-429,-424,-390,-396,-945,-944,-915,-581,-921,-918,-845,-712,-909,-906,-1035,-1031,-1021,-1012,-1002,-993,-1117,-1102,-1475,-1281,-5070,-3226,-29980,-29981,-29981,-29982,-29982,-29978,-29983,-29984,-29984,-29985,-29985,-29986,-29986,-29986]} 1. d4 Nf6 2. Nf3 e6 3. Bf4 d5 4. e3 c5 5. c4 cxd4 6. exd4 {D02: 1 d4 d5 2 Nf3 sidelines, including 2...Nf6 3 g3 and 2...Nf6 3 Bf4.} Bb4+ 7. Bd2 Be7 8. Nc3 {The position is equal.} O-O 9. Bd3 dxc4 10. Bxc4 Nc6 11. Be3 b6 12. O-O Bb7 {[#]} 13. d5 $146 (13. Qe2 $11) ({Predecessor:} 13. Rc1 Rc8 14. Qe2 Bd6 15. Rfd1 h6 16. Ne5 Qe7 17. f4 Rfd8 18. a3 Na5 19. Bb5 Nd5 20. Nxd5 Bxd5 21. b4 Nb3 22. Rc4 Rc7 23. Qd3 Rdc8 24. Ba6 Bxe5 25. Rxc7 Rxc7 {½-½ (24) Yeremeyeev,A-Griesche,V DESC email 2011}) 13... Na5 $17 {[%csl LRc4,LRd5]} 14. d6 (14. Bb5 $17) 14... Bxd6 15. Be2 Ng4 16. Qd4 Nxe3 17. Qxe3 Qf6 18. Ne4 Bxe4 19. Qxe4 {[#] And now b4 would win.} Qxb2 20. Bd3 {[%csl Gd3][%cal Re4h7]} g6 21. Qh4 Rad8 {[%cal Od6h2]} 22. Rab1 (22. Rad1 $142) 22... Qg7 {[%cal Od6h2]} 23. Rfd1 Nc6 {[%cal Ba5c6,Bc6d4,Bd4e2,Be2f4,Bf4g2][%mdl 32]} 24. Bc4 Be7 25. Qh3 (25. Qe4 $142 Rxd1+ 26. Rxd1) 25... Qf6 26. Qg3 Bc5 27. Qc7 (27. Qg5 $142 Qxg5 28. Nxg5) 27... Nd4 $19 28. Rd3 (28. Qb7 $142) 28... Ne2+ 29. Kf1 Nf4 ({Don't go for} 29... Nc3 $2 30. Rb2 $19) 30. Rxd8 Rxd8 {[%cal Bf8d8,Bd8d2,Bd2f2,Bf2f5,Bf5d5][%mdl 32]} 31. Qe5 Qxe5 32. Nxe5 Rd2 33. g3 $2 (33. Ng4) 33... Rxf2+ 34. Ke1 Ng2+ 35. Kd1 Ne3+ 36. Ke1 Rf5 37. Nd7 Nxc4 38. Ke2 Bd4 39. Kd3 Rd5 40. Kxc4 Rxd7 {[%mdl 4096] Endgame KRB-KR} 41. Rd1 e5 {[%cal Be6e5,Be5e4,Be4e3][%mdl 32]} 42. Kb5 e4 {Threatens to win with ...e3.} 43. Kc4 {[#]} e3 $1 44. Kd3 (44. g4 e2) 44... Bc5+ {Black mates.} 45. Ke2 Rxd1 46. Kxd1 f5 {[%cal Bf7f5,Bf5f4][%mdl 32]} 47. Ke2 g5 {[%cal Bg6g5,Bg5g4][%mdl 32]} 48. Kf3 g4+ 49. Ke2 h5 50. a4 f4 {Weighted Error Value: White=0.57/Black=0.12 (very precise)} 0-1

[Event "IX Torneio Internacional"]
[Site "Vila Nova de Famalicão"]
[Date "2022.07.25"]
[Round "1.7"]
[White "NIGMATOV, Ortik"]
[Black "PACHECO, Joao"]
[Result "1-0"]
[ECO "B32"]
[WhiteElo "2437"]
[BlackElo "1339"]
[Annotator "TA"]
[PlyCount "39"]
[EventDate "2022.07.25"]
[EventType "tourn"]
[EventCountry "POR"]
[SourceTitle "playchess.com"]
[Source "ChessBase"]
[SourceQuality "1"]
[TimeControl "5400+30"]

{[%evp 14,39,-3,0,0,0,8,8,2,9,159,171,175,241,293,144,150,150,202,212,346,343,857,812,29982,29983,29993,29994]} 1. e4 c5 2. Nf3 Nc6 3. d4 cxd4 4. Nxd4 e5 5. Nxc6 bxc6 6. Nc3 Nf6 7. Bc4 Bb4 8. O-O Bxc3 {B33: Sicilian: Pelikan and Sveshnikov Variations.} 9. bxc3 Nxe4 (9... d5 10. exd5 cxd5 11. Bb5+ Bd7 12. Bxd7+ Nxd7 13. Qxd5 $14) 10. Ba3 $1 d5 {The position is equal.} 11. Bd3 $40 {[%cal Bc4d3,Bd3e4,Be4d5][%mdl 160] [#] White mounts an attack. This bishop pair is nice.} Nd6 $146 (11... Nxc3 $2 12. Qe1 Nb5 13. Qxe5+ Be6 14. Bc5 $18 (14. Qxg7 Kd7 $18)) (11... Be6 $11) ({Predecessor:} 11... Nf6 12. Re1 e4 13. f3 Bf5 14. c4 Qb6+ 15. Kh1 O-O-O 16. Be2 exf3 17. Bxf3 Ne4 18. Bxe4 Bxe4 {1-0 (30) Frois,V (1642)-Vieira,P (1900) Sao Paulo 2014}) 12. Qh5 $16 {[%csl LRe5,LRh7]} e4 13. Qe5+ Be6 14. Qxg7 (14. Qxd6 Qxd6 15. Bxd6 exd3 $11) (14. Bxd6 $18 {has better winning chances.} exd3 15. cxd3) 14... Kd7 15. Bxd6 {[%cal Od6g3] Threatens to win with Bg3!} Kxd6 {[#]} (15... Rg8 $16 16. Qd4 (16. Qe5 exd3 17. Bc5 Qb8 $11) 16... exd3) 16. Bxe4 $1 $18 {[%mdl 512]} Qh4 {[#]} (16... Kc7 $142) (16... Rg8 17. Qd4) 17. f4 $1 {Dancing on a razor blade.} c5 $2 (17... dxe4 $2 18. Qe5+ Kd7 19. Rad1+ Bd5 20. Rxd5+ (20. c4 Qe7 $16) 20... cxd5 21. Rd1 $18) (17... Rhg8 18. Qe5+ (18. Qxh7 Qf6 $11) 18... Ke7 19. Bxh7 Qxh7) 18. Qe5+ Kd7 19. Bxd5 Rae8 20. Rab1 {Weighted Error Value: White=0.12 (very precise) /Black=0.84} 1-0

[Event "IX Torneio Internacional"]
[Site "Vila Nova de Famalicão"]
[Date "2022.07.25"]
[Round "1.8"]
[White "Alves, Damiao"]
[Black "C r g, KRISHNA"]
[Result "0-1"]
[ECO "B00"]
[WhiteElo "1316"]
[BlackElo "2430"]
[Annotator "TA"]
[PlyCount "36"]
[EventDate "2022.07.25"]
[EventType "tourn"]
[EventCountry "POR"]
[SourceTitle "playchess.com"]
[Source "ChessBase"]
[SourceQuality "1"]
[TimeControl "5400+30"]

{[%evp 15,36,50,65,18,43,0,12,-69,17,-20,0,-21,-23,-20,-33,-58,-60,-107,-62,-497,-496,-472,-455]} 1. e4 d6 2. d4 {[%cal Bd2d4,Bd4d5][%mdl 32]} Nf6 3. Bd3 e5 4. Nf3 Nc6 5. d5 Ne7 6. c4 g6 7. Nc3 Bg7 8. O-O O-O 9. b4 {E90: King's Indian: Classical: Early deviations and 6 h3.} (9. Re1 $14 {is more appropriate.}) 9... Nh5 {[%cal Bf6h5,Bh5f4,Bf4h3,Bh3f2][%mdl 32] [#]} 10. Nd2 $146 ({Predecessor:} 10. Bb2 Nf4 11. Ne2 Nxd3 12. Qxd3 f5 13. exf5 e4 {0-1 (13) Ziemann,U (1803)-Basel,M (1989) Bayern 2017}) 10... Nf4 11. Bc2 {[#]} ({White should try} 11. Nb3 $11) 11... f5 {Black is more active.} ({Black should play} 11... Bh3 $1 $15 12. gxh3 (12. g3 Bxf1) 12... Nexd5 $1 {[%mdl 512]}) 12. Ba3 b6 13. c5 fxe4 14. Ndxe4 Nf5 {aiming for ...Nh4.} 15. g3 {Against Nh4} Nh3+ 16. Kg2 $1 {[#]} Bh6 $1 {[%cal Oh3f2] Threatens to win with ...Nxf2!} 17. cxd6 $2 {[%mdl 8192] [#]} (17. Kh1 $15) (17. Bc1 Bxc1) 17... Nxf2 $1 $19 {[%mdl 512]} 18. dxc7 Qxc7 {Weighted Error Value: White=0.90/Black=0.21 (precise)} ({Worse is} 18... Nxd1 19. cxd8=R Nde3+ 20. Kh1 Rxd8 21. Rf2 $17) ({Don't go for} 18... Ne3+ $2 19. Kg1 Qxc7 20. d6 Nexd1 21. Rxf2 $19 (21. dxc7 $2 {is the wrong capture.} Nh3+ 22. Kg2 Ne3+ 23. Kh1 Nxc2 $19)) 0-1

[Event "IX Torneio Internacional"]
[Site "Vila Nova de Famalicão"]
[Date "2022.07.25"]
[Round "1.9"]
[White "Akhvlediani, Irakli"]
[Black "LACHEVER, Diogo"]
[Result "1-0"]
[ECO "A50"]
[WhiteElo "2429"]
[BlackElo "1303"]
[Annotator "TA"]
[PlyCount "65"]
[EventDate "2022.07.25"]
[EventType "tourn"]
[EventCountry "POR"]
[SourceTitle "playchess.com"]
[Source "ChessBase"]
[SourceQuality "1"]
[TimeControl "5400+30"]

{[%evp 9,65,45,62,56,47,52,48,45,80,63,76,39,68,42,99,95,77,20,112,124,113,107,109,115,120,114,120,122,206,200,278,194,522,525,511,460,424,487,949,939,1843,464,1804,1804,1474,768,2430,2339,2375,2353,2895,2841,5119,5106,2829,2560,29993,29994]} 1. d4 {[%emt 0:00:04]} Nf6 {[%emt 0:00:07]} 2. c4 {[%emt 0:00:05]} b6 {[%emt 0:00:26]} 3. Nc3 {[%emt 0:00:29]} Bb7 {[%emt 0:00:39]} 4. f3 {[%emt 0:00:18]} e6 {[%emt 0:00:56]} 5. e4 {[%emt 0:00:04][%cal Be2e4,Be4e5][%mdl 32]} d5 {[%emt 0:02:38]} 6. e5 {[%emt 0:01:41] A50: Queen's Fianchetto Defence (1 d4 Nf6 2 c4 b6).} Nfd7 {[%emt 0:00:29]} 7. cxd5 {[%emt 0:00:05]} exd5 {[%emt 0:00:18]} 8. f4 {[%emt 0:00:11] White is slightly better.} Be7 {[%emt 0:02:24]} 9. Nf3 {[%emt 0:00:05]} c5 {[%emt 0:00:49] [#]} 10. dxc5 $146 {[%emt 0:01:27]} ({Predecessor:} 10. Be3 O-O 11. Bd3 Nc6 12. O-O cxd4 13. Nxd4 Nxd4 14. Bxd4 Bc5 15. Ne2 Qe7 16. Kh1 {0-1 (34) Ivanchuk,V (2710)-Mamedyarov,S (2747) Huaian 2016}) 10... Bxc5 {[%emt 0:03:22]} 11. Bd3 {[%emt 0:02:50]} (11. Nxd5 Nxe5 $1 12. Bb5+ (12. Nxe5 Qxd5 13. Bb5+ Ke7 $15) 12... Bc6 13. Nxe5 (13. Bxc6+ Nexc6 14. Be3 Bxe3 $11) 13... Bxb5 $11) 11... Nc6 {[%emt 0:11:07]} (11... a5 $14) 12. a3 $1 $16 {[%emt 0:00:09]} a5 {[%emt 0:05:22] Inhibits b4.} 13. Qe2 {[%emt 0:03:24]} (13. Bd2 $16) 13... Nd4 {[%emt 0:02:49]} (13... O-O $1 $11) 14. Nxd4 {[%emt 0:00:14] White leaves nothing to chance now.} Bxd4 {[%emt 0:00:12]} 15. Nb5 {[%emt 0:08:24]} Bc5 {[%emt 0:00:43]} 16. Rb1 {[%emt 0:10:41][%cal Ba1b1,Bb1b3,Bb3h3][%mdl 32] White is more active.} O-O {[%emt 0:01:34] [#]} 17. b4 $1 {[%emt 0:00:07]} (17. Qh5 $6 g6 18. Qe2 a4 $11) 17... axb4 {[%emt 0:00:41]} 18. axb4 {[%emt 0:00:07]} Be7 {[%emt 0:00:29]} (18... Qh4+ $16 19. g3 Qh3) 19. O-O $18 {[%emt 0:00:06]} (19. Qh5 g6 20. Qe2 Nb8 $14) 19... d4 {[%emt 0:08:51]} 20. Rb3 $40 {[%emt 0:05:38][%mdl 128] White attacks with force.} ({Stronger than} 20. Nxd4 {[#]} Nxe5 $1 21. fxe5 (21. Qxe5 Bf6 $17) 21... Qxd4+ 22. Kh1 (22. Be3 Qxe5 23. Bxb6 Qxe2 $11) 22... Rad8 $11) 20... Bd5 $2 {[%emt 0:03:20] [#]} (20... g6 21. Bc4 (21. Nxd4 Nxe5 22. Nf5 Nc6 $11) 21... Rc8) 21. Bxh7+ $1 {[%emt 0:06:23][%mdl 512]} Kxh7 {[%emt 0:01:50]} 22. Rh3+ {[%emt 0:00:07]} Kg8 {[%emt 0:00:09]} 23. Qh5 {[%emt 0:00:21][%csl Gh3][%cal Rh5h7]} f6 {[%emt 0:01:12]} (23... f5 $142 24. Nxd4 Ra2 25. Qh7+ Kf7) 24. Nxd4 {[%emt 0:00:22][%cal Bb5d4,Bd4e6,Be6f8,Bf8e6][%mdl 32]} Ra2 {[%emt 0:03:03]} 25. Qh7+ {[%emt 0:01:26]} ({Not} 25. e6 $2 Rxg2+ 26. Kh1 Rg5+ 27. Qf3 Bxf3+ $19) 25... Kf7 {[%emt 0:00:09]} 26. e6+ {[%emt 0:00:03]} Bxe6 {[%emt 0:00:45]} 27. Qh5+ {[%emt 0:00:12]} g6 {[%emt 0:02:07]} 28. Qh7+ {[%emt 0:00:02][%mdl 64] Deflection} Ke8 {[%emt 0:00:09]} 29. Nxe6 {[%emt 0:00:05]} Qc8 {[%emt 0:01:24]} 30. Qxg6+ {[%emt 0:00:12]} Rf7 {[%emt 0:00:12]} 31. Rh8+ {[%emt 0:01:32]} Nf8 {[%emt 0:01:08]} 32. Nxf8 {[%emt 0:00:06] White threatens Nh7+ and mate.} Rc2 {[%emt 0:01:02]} 33. Ne6+ {[%emt 0:00:12] Weighted Error Value: White=0.15 (very precise) /Black=0.85} 1-0

[Event "IX Torneio Internacional"]
[Site "Vila Nova de Famalicão"]
[Date "2022.07.25"]
[Round "1.11"]
[White "CAMPORA, Daniel"]
[Black "FROLOV, Ilya"]
[Result "1-0"]
[ECO "B21"]
[WhiteElo "2397"]
[BlackElo "1288"]
[Annotator "TA"]
[PlyCount "39"]
[EventDate "2022.07.25"]
[EventType "tourn"]
[EventCountry "POR"]
[SourceTitle "playchess.com"]
[Source "ChessBase"]
[SourceQuality "1"]
[TimeControl "5400+30"]

{[%evp 10,39,-6,-23,0,-8,14,19,24,28,152,126,226,227,217,132,231,120,120,122,164,57,103,101,114,113,110,111,193,193,1960,1838]} 1. e4 c5 2. f4 Nc6 3. Nf3 e6 4. Bb5 d5 5. Bxc6+ bxc6 6. Nc3 Ba6 {B23: Closed Sicilian: Lines without g3.} 7. d3 Bd6 8. O-O Ne7 {[#] The position is equal.} 9. b3 $146 ({Predecessor:} 9. Qe1 Qb6 10. Kh1 h6 11. a3 O-O-O 12. Na4 Qb5 13. Nc3 Qb6 14. Na4 Qb5 15. Nc3 {1-0 (41) Povilaitis,T (1710)-Petersons,O (1752) Panevezys 2016}) 9... f6 (9... c4 $11) 10. e5 $16 fxe5 (10... Bc7 $16) 11. fxe5 $18 ({And not} 11. Nxe5 O-O $11) 11... Bc7 12. Na4 {Strongly threatening Ng5.} Bb6 {[#]} (12... O-O $16 {was worth a try.}) 13. c4 ({Better is} 13. Ng5 $1 $18 {[%cal Rg5e6]} Nf5 14. Nxe6) 13... O-O $16 14. Ba3 Ng6 15. Qc2 (15. Bxc5 $18 Rf5 16. Rc1) 15... Nh4 (15... dxc4 $14 {deserves consideration.} 16. dxc4 Nxe5) 16. Nxh4 Qxh4 {[#]} 17. Qb2 $1 Qg5 18. Qe2 {Prevents Qe3+.} ({Wrong is} 18. Bxc5 $2 Bxc5+ 19. Nxc5 Qe3+ 20. Rf2 Qxc5 $19) 18... Bc7 (18... Rxf1+ $16 19. Rxf1 Rf8) 19. Nxc5 $18 Bc8 $2 (19... Rxf1+ 20. Rxf1 Bb6) 20. Rxf8+ {Weighted Error Value: White=0.16 (very precise) /Black=0.55} 1-0